[Event "Titled Tuesday Blitz June 20 Late 2023"]
[White "Shuvalov, Evgenij"]
[Black "Indjic, Aleksandar"]
[WhiteFideId "4187237"]
[BlackFideId "911925"]
[WhiteElo "2080"]
[BlackElo "2614"]
[Result "0-1"]
[Round "1"]
[TimeControl "180+2"]
[Date "2023.06.20"]
[WhiteClock "0:00:30"]
[BlackClock "0:01:26"]
[Board "26"]

1. d4 {[%clk 0:02:57]}  Nf6 {[%clk 0:02:58]} 2. c4 {[%clk 0:02:57]}  e6 {[%clk 0:02:58]} 3. Nc3 {[%clk 0:02:56]}  c5 {[%clk 0:02:59]} 4. d5 {[%clk 0:02:54]}  exd5 {[%clk 0:02:59]} 5. cxd5 {[%clk 0:02:55]}  d6 {[%clk 0:02:59]} 6. Nf3 {[%clk 0:02:55]}  g6 {[%clk 0:02:59]} 7. Nd2 {[%clk 0:02:55]}  Bg7 {[%clk 0:02:58]} 8. e4 {[%clk 0:02:55]}  O-O {[%clk 0:02:57]} 9. Be2 {[%clk 0:02:55]}  Re8 {[%clk 0:02:57]} 10. O-O {[%clk 0:02:55]}  Nbd7 {[%clk 0:02:58]} 11. Re1 {[%clk 0:02:48]}  Ne5 {[%clk 0:02:51]} 12. h3 {[%clk 0:02:41]}  g5 {[%clk 0:02:50]} 13. Nf1 {[%clk 0:02:33]}  g4 {[%clk 0:02:45]} 14. h4 {[%clk 0:02:29]}  Nh5 {[%clk 0:02:24]} 15. g3 {[%clk 0:02:18]}  Nf6 {[%clk 0:02:22]} 16. Ne3 {[%clk 0:02:13]}  h5 {[%clk 0:02:18]} 17. Kg2 {[%clk 0:02:05]}  a6 {[%clk 0:02:16]} 18. a4 {[%clk 0:02:04]}  Rb8 {[%clk 0:02:16]} 19. Nc4 {[%clk 0:01:50]}  Nxc4 {[%clk 0:01:55]} 20. Bxc4 {[%clk 0:01:51]}  Bd7 {[%clk 0:01:54]} 21. Bf4 {[%clk 0:01:45]}  b5 {[%clk 0:01:52]} 22. axb5 {[%clk 0:01:45]}  axb5 {[%clk 0:01:53]} 23. Bd3 {[%clk 0:01:44]}  b4 {[%clk 0:01:52]} 24. Nb1 {[%clk 0:01:42]}  c4 {[%clk 0:01:51]} 25. Bxc4 {[%clk 0:01:38]}  Nxe4 {[%clk 0:01:51]} 26. Nd2 {[%clk 0:01:34]}  Bf5 {[%clk 0:01:51]} 27. Ra2 {[%clk 0:01:05]}  Nxd2 {[%clk 0:01:42]} 28. Qxd2 {[%clk 0:01:06]}  Re4 {[%clk 0:01:39]} 29. Bb3 {[%clk 0:00:58]}  Rd4 {[%clk 0:01:36]} 30. Qc1 {[%clk 0:00:49]}  Rc8 {[%clk 0:01:36]} 31. Qa1 {[%clk 0:00:49]}  Rxf4 {[%clk 0:01:32]} 32. gxf4 {[%clk 0:00:48]}  Qxh4 {[%clk 0:01:32]} 33. Re3 {[%clk 0:00:43]}  Bd4 {[%clk 0:01:29]} 34. Rg3 {[%clk 0:00:36]}  Be4+ {[%clk 0:01:28]} 35. Kg1 {[%clk 0:00:30]}  Qh1# {[%clk 0:01:26]} 0-1


[Site "https://www.chess.com"]

[Event "Titled Tuesday Blitz June 20 Late 2023"]
[White "Kokoszczynski, Jan"]
[Black "Xiong, Jeffery"]
[WhiteFideId "1174460"]
[BlackFideId "2047640"]
[WhiteElo "2139"]
[BlackElo "2726"]
[Result "0-1"]
[Round "1"]
[TimeControl "180+2"]
[Date "2023.06.20"]
[WhiteClock "0:00:00"]
[BlackClock "0:01:47"]
[Board "28"]

1. d4 {[%clk 0:02:57]}  Nf6 {[%clk 0:02:59]} 2. c4 {[%clk 0:02:57]}  c5 {[%clk 0:03:00]} 3. d5 {[%clk 0:02:57]}  b5 {[%clk 0:03:00]} 4. cxb5 {[%clk 0:02:56]}  a6 {[%clk 0:03:01]} 5. e3 {[%clk 0:02:57]}  g6 {[%clk 0:03:00]} 6. Nc3 {[%clk 0:02:57]}  Bg7 {[%clk 0:03:01]} 7. a4 {[%clk 0:02:57]}  O-O {[%clk 0:03:01]} 8. Nf3 {[%clk 0:02:57]}  Bb7 {[%clk 0:03:01]} 9. e4 {[%clk 0:02:51]}  e6 {[%clk 0:03:02]} 10. Bg5 {[%clk 0:02:03]}  h6 {[%clk 0:02:52]} 11. Bxf6 {[%clk 0:02:02]}  Qxf6 {[%clk 0:02:52]} 12. e5 {[%clk 0:02:01]}  Qf4 {[%clk 0:02:52]} 13. Be2 {[%clk 0:01:55]}  Bxe5 {[%clk 0:02:46]} 14. Nxe5 {[%clk 0:01:51]}  Qxe5 {[%clk 0:02:47]} 15. O-O {[%clk 0:01:49]}  axb5 {[%clk 0:02:44]} 16. axb5 {[%clk 0:01:44]}  Rxa1 {[%clk 0:02:43]} 17. Qxa1 {[%clk 0:01:45]}  exd5 {[%clk 0:02:44]} 18. Qa7 {[%clk 0:01:44]}  Bc8 {[%clk 0:02:39]} 19. Bf3 {[%clk 0:01:42]}  d4 {[%clk 0:02:38]} 20. Nd5 {[%clk 0:01:42]}  c4 {[%clk 0:02:20]} 21. b6 {[%clk 0:01:42]}  Nc6 {[%clk 0:02:20]} 22. Qa8 {[%clk 0:01:29]}  d3 {[%clk 0:02:13]} 23. b7 {[%clk 0:01:22]}  Bxb7 {[%clk 0:02:13]} 24. Qxb7 {[%clk 0:01:22]}  Nd4 {[%clk 0:02:14]} 25. Qxd7 {[%clk 0:01:08]}  Nxf3+ {[%clk 0:02:14]} 26. gxf3 {[%clk 0:01:09]}  Qxb2 {[%clk 0:02:14]} 27. Ne3 {[%clk 0:00:56]}  Qb4 {[%clk 0:02:05]} 28. Qd4 {[%clk 0:00:42]}  Rc8 {[%clk 0:01:57]} 29. Nd5 {[%clk 0:00:31]}  Qc5 {[%clk 0:01:57]} 30. Qxc5 {[%clk 0:00:14]}  Rxc5 {[%clk 0:01:57]} 31. Nc3 {[%clk 0:00:15]}  Kg7 {[%clk 0:01:51]} 32. Rc1 {[%clk 0:00:14]}  f5 {[%clk 0:01:51]} 33. Kf1 {[%clk 0:00:15]}  Kf6 {[%clk 0:01:52]} 34. Ke1 {[%clk 0:00:13]}  Ke5 {[%clk 0:01:52]} 35. Rb1 {[%clk 0:00:13]}  Kf4 {[%clk 0:01:52]} 36. Rb6 {[%clk 0:00:08]}  Re5+ {[%clk 0:01:52]} 37. Kd2 {[%clk 0:00:08]}  g5 {[%clk 0:01:51]} 38. Rxh6 {[%clk 0:00:08]}  Kxf3 {[%clk 0:01:52]} 39. Nd1 {[%clk 0:00:08]}  Re2+ {[%clk 0:01:51]} 40. Kc3 {[%clk 0:00:08]}  Rc2+ {[%clk 0:01:52]} 41. Kd4 {[%clk 0:00:08]}  Rc1 {[%clk 0:01:52]} 42. Ne3 {[%clk 0:00:06]}  d2 {[%clk 0:01:49]} 43. Rf6 {[%clk 0:00:04]}  f4 {[%clk 0:01:49]} 44. h4 {[%clk 0:00:00]}  Ke2 {[%clk 0:01:47]} 0-1


[Site "https://www.chess.com"]

[Event "Titled Tuesday Blitz June 20 Late 2023"]
[White "Durarbayli, Vasif"]
[Black "Tifferet, Shaked"]
[WhiteFideId "13402935"]
[BlackFideId "2811529"]
[WhiteElo "2551"]
[BlackElo "2142"]
[Result "1-0"]
[Round "1"]
[TimeControl "180+2"]
[Date "2023.06.20"]
[WhiteClock "0:01:03"]
[BlackClock "0:01:07"]
[Board "29"]

1. e4 {[%clk 0:03:00]}  c5 {[%clk 0:02:57]} 2. Nf3 {[%clk 0:03:00]}  d6 {[%clk 0:02:58]} 3. d4 {[%clk 0:03:01]}  cxd4 {[%clk 0:02:59]} 4. Nxd4 {[%clk 0:03:01]}  a6 {[%clk 0:02:59]} 5. c4 {[%clk 0:03:01]}  Nf6 {[%clk 0:02:59]} 6. Nc3 {[%clk 0:03:01]}  e6 {[%clk 0:02:58]} 7. g4 {[%clk 0:02:59]}  b6 {[%clk 0:02:54]} 8. g5 {[%clk 0:02:59]}  Nfd7 {[%clk 0:02:54]} 9. Be3 {[%clk 0:02:57]}  Bb7 {[%clk 0:02:54]} 10. Qd2 {[%clk 0:02:56]}  Nc6 {[%clk 0:02:54]} 11. O-O-O {[%clk 0:02:55]}  Rc8 {[%clk 0:02:51]} 12. Nxc6 {[%clk 0:02:45]}  Bxc6 {[%clk 0:02:47]} 13. Kb1 {[%clk 0:02:43]}  Rb8 {[%clk 0:02:27]} 14. Bf4 {[%clk 0:02:03]}  Ne5 {[%clk 0:01:59]} 15. Qc2 {[%clk 0:02:02]}  Qc7 {[%clk 0:01:51]} 16. Bc1 {[%clk 0:02:00]}  Qb7 {[%clk 0:01:49]} 17. f4 {[%clk 0:01:58]}  Nd7 {[%clk 0:01:48]} 18. Bg2 {[%clk 0:01:30]}  b5 {[%clk 0:01:48]} 19. cxb5 {[%clk 0:01:28]}  axb5 {[%clk 0:01:49]} 20. Rhe1 {[%clk 0:01:27]}  Be7 {[%clk 0:01:46]} 21. Nd5 {[%clk 0:01:27]}  Bxd5 {[%clk 0:01:30]} 22. exd5 {[%clk 0:01:28]}  e5 {[%clk 0:01:31]} 23. fxe5 {[%clk 0:01:27]}  Nxe5 {[%clk 0:01:30]} 24. Rxe5 {[%clk 0:01:27]}  dxe5 {[%clk 0:01:30]} 25. d6 {[%clk 0:01:28]}  Qc8 {[%clk 0:01:17]} 26. Bc6+ {[%clk 0:01:21]}  Kf8 {[%clk 0:01:18]} 27. dxe7+ {[%clk 0:01:21]}  Kxe7 {[%clk 0:01:19]} 28. Qc5+ {[%clk 0:01:22]}  Ke6 {[%clk 0:01:18]} 29. Rd6+ {[%clk 0:01:18]}  Kf5 {[%clk 0:01:16]} 30. Qf2+ {[%clk 0:01:06]}  Kg4 {[%clk 0:01:07]} 31. Bf3+ {[%clk 0:01:03]} 1-0


[Site "https://www.chess.com"]

[Event "Titled Tuesday Blitz June 20 Late 2023"]
[White "cristianserban1"]
[Black "Eljanov, Pavel"]
[BlackFideId "14102951"]
[WhiteElo "2493"]
[BlackElo "2598"]
[Result "0-1"]
[Round "1"]
[TimeControl "180+2"]
[Date "2023.06.20"]
[WhiteClock "0:00:00"]
[BlackClock "0:00:16"]
[Board "30"]

1. d4 {[%clk 0:02:56]}  d5 {[%clk 0:02:59]} 2. Bf4 {[%clk 0:02:56]}  Nf6 {[%clk 0:02:57]} 3. Nf3 {[%clk 0:02:57]}  c5 {[%clk 0:02:57]} 4. e3 {[%clk 0:02:57]}  Nc6 {[%clk 0:02:57]} 5. Nbd2 {[%clk 0:02:58]}  Qb6 {[%clk 0:02:57]} 6. dxc5 {[%clk 0:02:57]}  Qxb2 {[%clk 0:02:57]} 7. Rb1 {[%clk 0:02:57]}  Qa3 {[%clk 0:02:58]} 8. Rb3 {[%clk 0:02:53]}  Qxc5 {[%clk 0:02:55]} 9. c4 {[%clk 0:02:54]}  e6 {[%clk 0:02:47]} 10. Be2 {[%clk 0:02:47]}  a6 {[%clk 0:02:34]} 11. O-O {[%clk 0:02:34]}  Be7 {[%clk 0:02:34]} 12. Qb1 {[%clk 0:02:27]}  O-O {[%clk 0:02:29]} 13. Rc1 {[%clk 0:02:27]}  Qa5 {[%clk 0:02:27]} 14. cxd5 {[%clk 0:02:16]}  exd5 {[%clk 0:02:27]} 15. Rxb7 {[%clk 0:02:05]}  Bxb7 {[%clk 0:02:06]} 16. Qxb7 {[%clk 0:02:06]}  Bb4 {[%clk 0:01:13]} 17. Rxc6 {[%clk 0:01:44]}  Bxd2 {[%clk 0:01:12]} 18. Qb2 {[%clk 0:01:43]}  Bb4 {[%clk 0:00:46]} 19. Rxf6 {[%clk 0:01:10]}  Bc3 {[%clk 0:00:37]} 20. Qb6 {[%clk 0:01:11]}  gxf6 {[%clk 0:00:35]} 21. Qb1 {[%clk 0:01:10]}  d4 {[%clk 0:00:22]} 22. Bh6 {[%clk 0:00:38]}  Rfe8 {[%clk 0:00:19]} 23. h3 {[%clk 0:00:01]}  Rab8 {[%clk 0:00:17]} 24. Qd3 {[%clk 0:00:00]}  Qxa2 {[%clk 0:00:16]} 0-1


[Site "https://www.chess.com"]

[Event "Titled Tuesday Blitz June 20 Late 2023"]
[White "Zhigalko, Sergei"]
[Black "Przybylski, Wojciech"]
[WhiteFideId "13502956"]
[BlackFideId "1117599"]
[WhiteElo "2626"]
[BlackElo "2228"]
[Result "1-0"]
[Round "1"]
[TimeControl "180+2"]
[Date "2023.06.20"]
[WhiteClock "0:00:02"]
[BlackClock "0:00:00"]
[Board "31"]

1. e4 {[%clk 0:03:00]}  e5 {[%clk 0:02:58]} 2. Nf3 {[%clk 0:03:00]}  Nf6 {[%clk 0:02:58]} 3. d4 {[%clk 0:03:00]}  Nxe4 {[%clk 0:02:57]} 4. Bd3 {[%clk 0:03:00]}  d5 {[%clk 0:02:56]} 5. Nxe5 {[%clk 0:03:00]}  Nd7 {[%clk 0:02:56]} 6. Nxd7 {[%clk 0:03:00]}  Bxd7 {[%clk 0:02:56]} 7. O-O {[%clk 0:03:01]}  Bd6 {[%clk 0:02:56]} 8. Nc3 {[%clk 0:03:01]}  Nxc3 {[%clk 0:02:49]} 9. bxc3 {[%clk 0:03:02]}  O-O {[%clk 0:02:39]} 10. Qh5 {[%clk 0:03:00]}  f5 {[%clk 0:02:37]} 11. Re1 {[%clk 0:02:58]}  c6 {[%clk 0:02:33]} 12. c4 {[%clk 0:02:51]}  Be7 {[%clk 0:02:21]} 13. Bf4 {[%clk 0:02:46]}  Bf6 {[%clk 0:02:18]} 14. Be5 {[%clk 0:02:47]}  Qe8 {[%clk 0:02:04]} 15. Qf3 {[%clk 0:02:42]}  Qf7 {[%clk 0:02:01]} 16. cxd5 {[%clk 0:02:38]}  Qxd5 {[%clk 0:01:55]} 17. Qe2 {[%clk 0:02:34]}  Qf7 {[%clk 0:01:30]} 18. Bd6 {[%clk 0:02:11]}  Rfe8 {[%clk 0:00:41]} 19. Bc4 {[%clk 0:02:09]}  Rxe2 {[%clk 0:00:40]} 20. Bxf7+ {[%clk 0:02:09]}  Kxf7 {[%clk 0:00:40]} 21. Rxe2 {[%clk 0:02:10]}  Be6 {[%clk 0:00:38]} 22. Be5 {[%clk 0:02:08]}  Bc4 {[%clk 0:00:34]} 23. Re3 {[%clk 0:01:49]}  Bd8 {[%clk 0:00:33]} 24. a4 {[%clk 0:01:41]}  a5 {[%clk 0:00:31]} 25. Rh3 {[%clk 0:00:56]}  h6 {[%clk 0:00:29]} 26. Rg3 {[%clk 0:00:56]}  g6 {[%clk 0:00:28]} 27. Rc3 {[%clk 0:00:40]}  b5 {[%clk 0:00:25]} 28. Rb1 {[%clk 0:00:26]}  Be7 {[%clk 0:00:23]} 29. d5 {[%clk 0:00:15]}  Bb4 {[%clk 0:00:21]} 30. Rh3 {[%clk 0:00:15]}  Bxd5 {[%clk 0:00:15]} 31. axb5 {[%clk 0:00:14]}  cxb5 {[%clk 0:00:15]} 32. Rxh6 {[%clk 0:00:07]}  Bc4 {[%clk 0:00:11]} 33. h4 {[%clk 0:00:06]}  Bd2 {[%clk 0:00:10]} 34. Rh7+ {[%clk 0:00:05]}  Ke6 {[%clk 0:00:10]} 35. Ba1 {[%clk 0:00:02]}  a4 {[%clk 0:00:10]} 36. Rd1 {[%clk 0:00:03]}  Rd8 {[%clk 0:00:07]} 37. Rg7 {[%clk 0:00:03]}  Be2 {[%clk 0:00:06]} 38. Rxg6+ {[%clk 0:00:03]}  Kf7 {[%clk 0:00:06]} 39. Rf6+ {[%clk 0:00:03]}  Ke7 {[%clk 0:00:06]} 40. Rb1 {[%clk 0:00:03]}  b4 {[%clk 0:00:05]} 41. Rxf5 {[%clk 0:00:03]}  Kd6 {[%clk 0:00:04]} 42. Re5 {[%clk 0:00:02]}  Bc4 {[%clk 0:00:04]} 43. Ra5 {[%clk 0:00:02]}  a3 {[%clk 0:00:02]} 44. h5 {[%clk 0:00:02]}  Kc6 {[%clk 0:00:03]} 45. h6 {[%clk 0:00:03]}  Bb5 {[%clk 0:00:03]} 46. h7 {[%clk 0:00:03]}  a2 {[%clk 0:00:00]} 47. Rd1 {[%clk 0:00:02]} 1-0


[Site "https://www.chess.com"]

[Event "Titled Tuesday Blitz June 20 Late 2023"]
[White "Henriquez Villagra, Cristobal"]
[Black "Namitbir Singh Walia"]
[WhiteFideId "3409350"]
[BlackFideId "35071068"]
[WhiteElo "2542"]
[BlackElo "2239"]
[Result "1/2-1/2"]
[Round "1"]
[TimeControl "180+2"]
[Date "2023.06.20"]
[WhiteClock "0:00:07"]
[BlackClock "0:00:12"]
[Board "33"]

1. Nf3 {[%clk 0:03:00]}  d5 {[%clk 0:02:58]} 2. g3 {[%clk 0:02:59]}  Nf6 {[%clk 0:02:57]} 3. Bg2 {[%clk 0:03:00]}  g6 {[%clk 0:02:56]} 4. O-O {[%clk 0:02:59]}  Bg7 {[%clk 0:02:57]} 5. d4 {[%clk 0:02:59]}  O-O {[%clk 0:02:57]} 6. c3 {[%clk 0:02:57]}  c6 {[%clk 0:02:53]} 7. a4 {[%clk 0:02:50]}  Bf5 {[%clk 0:02:49]} 8. a5 {[%clk 0:02:50]}  Nbd7 {[%clk 0:02:44]} 9. Nbd2 {[%clk 0:02:41]}  h6 {[%clk 0:02:38]} 10. Nh4 {[%clk 0:02:27]}  Be6 {[%clk 0:02:37]} 11. f4 {[%clk 0:02:28]}  Bf5 {[%clk 0:02:11]} 12. h3 {[%clk 0:02:09]}  Ne4 {[%clk 0:01:55]} 13. Nxf5 {[%clk 0:02:02]}  gxf5 {[%clk 0:01:55]} 14. Nxe4 {[%clk 0:02:03]}  fxe4 {[%clk 0:01:49]} 15. f5 {[%clk 0:02:03]}  e6 {[%clk 0:01:38]} 16. g4 {[%clk 0:02:02]}  exf5 {[%clk 0:01:32]} 17. Rxf5 {[%clk 0:02:02]}  Qe7 {[%clk 0:01:23]} 18. Bf4 {[%clk 0:02:02]}  Qe6 {[%clk 0:01:20]} 19. Qd2 {[%clk 0:02:01]}  b6 {[%clk 0:01:16]} 20. Rf1 {[%clk 0:01:55]}  bxa5 {[%clk 0:01:13]} 21. Rh5 {[%clk 0:01:56]}  Nf6 {[%clk 0:01:11]} 22. Rh4 {[%clk 0:01:52]}  Rfe8 {[%clk 0:01:01]} 23. Qe3 {[%clk 0:01:52]}  Rab8 {[%clk 0:01:01]} 24. Bxh6 {[%clk 0:01:52]}  Nd7 {[%clk 0:00:40]} 25. Rh5 {[%clk 0:01:43]}  Rxb2 {[%clk 0:00:30]} 26. Rff5 {[%clk 0:01:16]}  Nf8 {[%clk 0:00:24]} 27. Rfg5 {[%clk 0:01:01]}  Ng6 {[%clk 0:00:22]} 28. Rf5 {[%clk 0:00:58]}  Nf8 {[%clk 0:00:19]} 29. Qg5 {[%clk 0:00:54]}  Qg6 {[%clk 0:00:18]} 30. Qh4 {[%clk 0:00:54]}  Ne6 {[%clk 0:00:15]} 31. Rfg5 {[%clk 0:00:46]}  Nxg5 {[%clk 0:00:14]} 32. Rxg5 {[%clk 0:00:47]}  a4 {[%clk 0:00:10]} 33. Rxg6 {[%clk 0:00:42]}  fxg6 {[%clk 0:00:11]} 34. Qg5 {[%clk 0:00:42]}  a3 {[%clk 0:00:10]} 35. Qxg6 {[%clk 0:00:41]}  Re7 {[%clk 0:00:10]} 36. Bxg7 {[%clk 0:00:19]}  Rxg7 {[%clk 0:00:11]} 37. Qe8+ {[%clk 0:00:20]}  Kh7 {[%clk 0:00:11]} 38. Bxe4+ {[%clk 0:00:13]}  dxe4 {[%clk 0:00:11]} 39. Qxe4+ {[%clk 0:00:14]}  Kh8 {[%clk 0:00:11]} 40. Qe8+ {[%clk 0:00:14]}  Kh7 {[%clk 0:00:11]} 41. Qh5+ {[%clk 0:00:12]}  Kg8 {[%clk 0:00:11]} 42. Qe8+ {[%clk 0:00:13]}  Kh7 {[%clk 0:00:11]} 43. Qh5+ {[%clk 0:00:05]}  Kg8 {[%clk 0:00:12]} 44. Qa5 {[%clk 0:00:06]}  a2 {[%clk 0:00:12]} 45. Kf2 {[%clk 0:00:07]}  Rf7+ {[%clk 0:00:11]} 46. Kg3 {[%clk 0:00:07]}  Rf1 {[%clk 0:00:11]} 47. Qd8+ {[%clk 0:00:05]}  Rf8 {[%clk 0:00:12]} 48. Qg5+ {[%clk 0:00:05]}  Kf7 {[%clk 0:00:12]} 49. Qa5 {[%clk 0:00:05]}  Kg7 {[%clk 0:00:12]} 50. Qxa7+ {[%clk 0:00:06]}  Rf7 {[%clk 0:00:12]} 51. Qa3 {[%clk 0:00:06]}  Rfb7 {[%clk 0:00:12]} 52. g5 {[%clk 0:00:06]}  Rxe2 {[%clk 0:00:12]} 53. h4 {[%clk 0:00:06]}  Rb1 {[%clk 0:00:12]} 54. Qa7+ {[%clk 0:00:07]}  Kg6 {[%clk 0:00:12]} 55. Qc5 {[%clk 0:00:07]}  a1=Q {[%clk 0:00:13]} 56. Qxc6+ {[%clk 0:00:08]}  Kf5 {[%clk 0:00:12]} 57. Qf3+ {[%clk 0:00:09]}  Kg6 {[%clk 0:00:12]} 58. Qf6+ {[%clk 0:00:09]}  Kh7 {[%clk 0:00:12]} 59. g6+ {[%clk 0:00:09]}  Kh6 {[%clk 0:00:11]} 60. g7+ {[%clk 0:00:04]}  Kh7 {[%clk 0:00:10]} 61. Qf5+ {[%clk 0:00:05]}  Kxg7 {[%clk 0:00:11]} 62. Qg4+ {[%clk 0:00:05]}  Kf7 {[%clk 0:00:11]} 63. Qf3+ {[%clk 0:00:05]}  Kg7 {[%clk 0:00:11]} 64. Qg4+ {[%clk 0:00:06]}  Kh6 {[%clk 0:00:11]} 65. Qg5+ {[%clk 0:00:06]}  Kh7 {[%clk 0:00:12]} 66. Qh5+ {[%clk 0:00:07]}  Kg7 {[%clk 0:00:12]} 67. Qg4+ {[%clk 0:00:07]} 1/2-1/2


[Site "https://www.chess.com"]

[Event "Titled Tuesday Blitz June 20 Late 2023"]
[White "Papayan, Oleg"]
[Black "Tari, Aryan"]
[WhiteFideId "4193911"]
[BlackFideId "1510045"]
[WhiteElo "2167"]
[BlackElo "2586"]
[Result "0-1"]
[Round "1"]
[TimeControl "180+2"]
[Date "2023.06.20"]
[WhiteClock "0:00:02"]
[BlackClock "0:01:43"]
[Board "34"]

1. e4 {[%clk 0:02:58]}  e5 {[%clk 0:02:57]} 2. Nf3 {[%clk 0:02:58]}  Nc6 {[%clk 0:02:58]} 3. Bb5 {[%clk 0:02:58]}  Nge7 {[%clk 0:02:58]} 4. c3 {[%clk 0:02:58]}  d5 {[%clk 0:02:58]} 5. exd5 {[%clk 0:02:52]}  Qxd5 {[%clk 0:02:58]} 6. Qe2 {[%clk 0:02:26]}  Bg4 {[%clk 0:02:56]} 7. Bc4 {[%clk 0:02:11]}  Bxf3 {[%clk 0:02:56]} 8. Bxd5 {[%clk 0:02:10]}  Bxe2 {[%clk 0:02:55]} 9. Bxc6+ {[%clk 0:02:11]}  Nxc6 {[%clk 0:02:50]} 10. Kxe2 {[%clk 0:02:11]}  e4 {[%clk 0:02:46]} 11. d4 {[%clk 0:01:54]}  exd3+ {[%clk 0:02:46]} 12. Kxd3 {[%clk 0:01:55]}  O-O-O+ {[%clk 0:02:46]} 13. Ke2 {[%clk 0:01:28]}  Bc5 {[%clk 0:02:43]} 14. Be3 {[%clk 0:01:27]}  Rhe8 {[%clk 0:02:30]} 15. Nd2 {[%clk 0:01:26]}  f5 {[%clk 0:02:16]} 16. g3 {[%clk 0:01:17]}  g5 {[%clk 0:02:09]} 17. Nb3 {[%clk 0:01:15]}  Bxe3 {[%clk 0:02:10]} 18. fxe3 {[%clk 0:01:16]}  f4 {[%clk 0:02:11]} 19. gxf4 {[%clk 0:01:16]}  gxf4 {[%clk 0:02:12]} 20. Rhe1 {[%clk 0:01:13]}  Rxe3+ {[%clk 0:02:11]} 21. Kf2 {[%clk 0:01:14]}  Rh3 {[%clk 0:02:04]} 22. Kg2 {[%clk 0:01:14]}  Rh5 {[%clk 0:01:57]} 23. Re4 {[%clk 0:00:51]}  Rg8+ {[%clk 0:01:55]} 24. Kh1 {[%clk 0:00:50]}  Ne5 {[%clk 0:01:55]} 25. Rxf4 {[%clk 0:00:30]}  Ng4 {[%clk 0:01:55]} 26. Rxg4 {[%clk 0:00:18]}  Rxg4 {[%clk 0:01:55]} 27. Re1 {[%clk 0:00:17]}  a5 {[%clk 0:01:51]} 28. Re2 {[%clk 0:00:09]}  b6 {[%clk 0:01:50]} 29. Nd4 {[%clk 0:00:09]}  Kb7 {[%clk 0:01:50]} 30. Re3 {[%clk 0:00:05]}  Rgh4 {[%clk 0:01:48]} 31. Nf3 {[%clk 0:00:03]}  Rf4 {[%clk 0:01:46]} 32. Kg2 {[%clk 0:00:04]}  Rh6 {[%clk 0:01:45]} 33. Kg3 {[%clk 0:00:03]}  Rf7 {[%clk 0:01:46]} 34. h3 {[%clk 0:00:03]}  Rg6+ {[%clk 0:01:46]} 35. Kh2 {[%clk 0:00:04]}  Rfg7 {[%clk 0:01:43]} 36. Nh4 {[%clk 0:00:03]}  Rd6 {[%clk 0:01:43]} 37. Nf5 {[%clk 0:00:03]}  Rd2+ {[%clk 0:01:43]} 38. Kh1 {[%clk 0:00:03]}  Rf7 {[%clk 0:01:43]} 39. Nd4 {[%clk 0:00:02]}  Rf1# {[%clk 0:01:43]} 0-1


[Site "https://www.chess.com"]